bitfinex-derivatives/quotes_SOLF0:USTF0_20250309
["timestamp","ask_amount","ask_price","bid_price","bid_amount"]
[1741542483673,80.83473633,128.22,128.18,90.59683486]
[1741542483881,28.96034422,128.22,128.18,90.59683486]
[1741542484173,24.99134422,128.22,128.18,90.59683486]
[1741542484676,24.99134422,128.22,128.17,0.05449631]
[1741542485375,2.4105,128.22,128.17,0.05449631]
[1741542486877,4.823,128.22,128.17,0.05449631]
[1741542487071,2.4105,128.22,128.17,0.05449631]
[1741542487273,257.64,128.23,128.17,0.05449631]
[1741542487477,39.26,128.24,128.18,51.57683486]
[1741542487979,39.26,128.24,128.2,0.05778429]
[1741542488578,7.6169,128.27,128.21,51.57683486]
[1741542488579,39.2,128.27,128.21,51.57683486]
[1741542488883,39.2,128.27,128.21,54.00283486]
[1741542489078,39.2,128.27,128.23,0.05275484]
[1741542489479,302.0044,128.3,128.23,0.05275484]
[1741542489679,7.796,128.29,128.23,0.05275484]
[1741542489882,302.0044,128.3,128.23,0.05275484]
[1741542490384,7.7961,128.28,128.23,0.05275484]
[1741542490682,302.0044,128.3,128.23,0.05275484]
[1741542491277,262.8444,128.3,128.23,0.05275484]
[1741542491479,39.08,128.29,128.23,0.05275484]
[1741542491976,7.795,128.3,128.25,7.7978]
[1741542492177,41.6079,128.32,128.22,90.73683486]
[1741542492372,41.6079,128.32,128.26,0.05290348]
[1741542492982,7.7966,128.27,128.26,0.05290348]
[1741542493385,90.85683486,128.28,128.17,39.28]
[1741542493579,2.6112,128.26,128.17,41.8284]
[1741542493977,39.22,128.26,128.18,5.0384]
[1741542494286,39.22,128.26,128.18,2.6433]
[1741542494486,0.05603509,128.23,128.21,0.05185887]
[1741542495075,39.24,128.34,128.22,103.15366972]
[1741542495282,39.24,128.34,128.25,51.57683486]
[1741542495678,7.7964,128.28,128.24,7.7984]
[1741542496284,39.16,128.3,128.25,0.05325355]
[1741542496584,39.24,128.33,128.25,0.05325355]
[1741542496780,7.7946,128.31,128.27,7.7963]
[1741542496973,7.7946,128.31,128.28,0.05262409]
[1741542497378,7.7954,128.29,128.28,0.05262409]
[1741542497780,39.18,128.29,128.19,51.57683486]
[1741542497986,56.69733486,128.28,128.17,93.24693486]
[1741542498485,5.1205,128.28,128.17,93.24693486]
[1741542498787,39.18,128.29,128.2,51.57683486]
[1741542498989,0.05894788,128.24,128.22,0.05220665]
[1741542499282,39.18,128.29,128.22,0.05220665]
[1741542499488,0.04946771,128.24,128.23,7.7991]
[1741542499787,0.05761108,128.25,128.2,51.57683486]
[1741542499980,7.7991,128.24,128.22,0.0577709]
[1741542500183,39.17761108,128.25,128.22,0.0577709]
[1741542501574,7.7985,128.24,128.22,0.0577709]
[1741542501774,39.17761108,128.25,128.22,0.0577709]
[1741542501974,7.7991,128.23,128.22,0.0577709]
[1741542502186,39.17761108,128.25,128.22,0.0577709]
[1741542502388,0.05761108,128.25,128.22,0.0577709]
[1741542503383,7.7991,128.23,128.22,0.0577709]
[1741542505484,0.05761108,128.25,128.22,0.0577709]
[1741542505785,7.85581108,128.25,128.22,0.0577709]
[1741542505979,0.05761108,128.25,128.22,0.0577709]
[1741542506487,0.05761108,128.25,128.23,7.7991]
[1741542506692,0.05761108,128.25,128.22,0.0577709]
[1741542507076,7.795,128.3,128.26,7.7968]
[1741542507283,264.8422,128.34,128.23,33.90245253]
[1741542507480,38.84,128.33,128.25,31.52035253]
[1741542507782,303.6622,128.34,128.25,31.52035253]
[1741542507989,264.8422,128.34,128.25,31.52035253]
[1741542508189,38.84,128.33,128.28,0.04988001]
[1741542508687,7.7951,128.3,128.28,0.04988001]
[1741542509084,38.84,128.33,128.28,0.04988001]
[1741542509290,7.7954,128.29,128.28,0.04988001]
[1741542509484,38.76,128.29,128.22,51.19399074]
[1741542509681,7.7976,128.26,128.2,349.83239074]
[1741542509891,38.76,128.29,128.2,349.83239074]
[1741542510092,38.76,128.29,128.22,51.19399074]
[1741542510782,0.05729478,128.27,128.24,0.05409508]
[1741542511188,0.05729478,128.27,128.25,7.7975]
[1741542511391,0.05729478,128.27,128.24,0.05409508]
[1741542511683,0.05729478,128.27,128.24,51.24808582]
[1741542512490,0.05729478,128.27,128.26,7.7972]
[1741542512879,0.05729478,128.27,128.24,51.24808582]
[1741542513280,0.05729478,128.27,128.24,0.05409508]
[1741542513479,0.05729478,128.27,128.24,7.85209508]
[1741542513691,0.05729478,128.27,128.24,0.05409508]
[1741542513893,0.05729478,128.27,128.16,90.03399074]
[1741542513894,2.64719478,128.27,128.16,90.03399074]
[1741542514087,5.0576,128.27,128.16,90.03399074]
[1741542514288,5.0576,128.27,128.13,4.79]
[1741542514289,51.19399074,128.25,128.13,4.79]
[1741542514587,39.26,128.24,128.13,55.98399074]
[1741542514790,41.8336,128.24,128.13,55.98399074]
[1741542515086,0.05211734,128.2,128.17,0.0552865]
[1741542515290,39.49211734,128.2,128.17,0.0552865]
[1741542515687,7.8021,128.18,128.17,0.0552865]
[1741542516884,39.49211734,128.2,128.16,32.10399]
[1741542516885,7.8027,128.17,128.16,32.10399]
[1741542517100,39.49211734,128.2,128.15,85.61064]
[1741542517291,39.44,128.2,128.15,85.61064]
[1741542518093,7.8033,128.16,128.15,85.61064]
[1741542518295,47.0033,128.16,128.15,85.61064]
[1741542518997,7.8039,128.15,128.14,63.56247578]
[1741542519197,192.0,128.14,128.12,171.69991026]
[1741542519498,192.0,128.14,128.11,263.08347726]
[1741542519499,7.8058,128.12,128.11,263.08347726]
[1741542519692,47.0058,128.12,128.11,263.08347726]
[1741542519890,47.0058,128.12,128.07,10.79860653]
[1741542519891,43.1,128.12,128.07,10.79860653]
[1741542520091,192.0,128.11,128.07,10.79860653]
[1741542520294,192.05355415,128.11,128.08,0.05698501]
[1741542520501,7.8076,128.09,128.08,0.05698501]
[1741542521296,192.05355415,128.11,128.08,0.05698501]
[1741542522292,146.59890136,128.09,128.08,0.05698501]
[1741542523399,100.28870136,128.09,128.08,7.86518501]
[1741542523695,0.05355415,128.11,128.08,3.95698501]
[1741542523895,0.05355415,128.11,128.08,0.05698501]
[1741542524094,257.54,128.24,128.09,51.19399074]
[1741542524293,44.0636,128.21,128.12,51.19399074]
[1741542524493,73.61096545,128.21,128.18,7.8019]
[1741542524699,73.61096545,128.21,128.15,51.19399074]
[1741542525194,73.61096545,128.21,128.17,7.8027]
[1741542525393,0.05857431,128.19,128.17,7.85439365]
[1741542525792,0.05857431,128.19,128.17,0.05169365]
[1741542526395,0.05857431,128.19,128.17,7.85429365]
[1741542526598,0.05857431,128.19,128.17,0.05169365]
[1741542528596,0.05857431,128.19,128.1,51.19399074]
[1741542528800,7.8028,128.17,128.13,7.8048]
[1741542529001,38.84,128.16,128.13,7.8048]
[1741542529397,38.84,128.16,128.11,7.8063]
[1741542529594,38.84,128.16,128.09,51.19399074]
[1741542529595,38.89656971,128.16,128.13,0.05276683]
[1741542529793,46.70016971,128.16,128.13,0.05276683]
[1741542530098,38.89656971,128.16,128.13,0.05276683]
[1741542531500,38.89656971,128.16,128.13,7.85736683]
[1741542531902,38.89656971,128.16,128.07,2.5958]
[1741542532098,7.8058,128.12,128.05,2.5224]
[1741542532404,46.5058,128.12,128.05,2.5224]
[1741542532598,38.7,128.12,128.04,53.66389074]
[1741542532904,38.7,128.12,128.07,51.19399074]
[1741542533102,5.211e-05,128.09,128.08,7.8082]
[1741542534893,296.26,128.16,128.15,7.8039]
[1741542535095,2.5915,128.19,128.14,51.19399074]
[1741542535296,296.3,128.22,128.14,51.19399074]
[1741542535701,296.3,128.22,128.21,7.8003]
[1741542536000,296.3,128.22,128.14,51.19399074]
[1741542536001,117.83920665,128.24,128.17,51.19399074]
[1741542536195,0.05675538,128.23,128.2,0.05643157]
[1741542536400,0.05675538,128.23,128.22,7.7997]
[1741542537101,0.05675538,128.23,128.21,7.8001]
[1741542537606,0.05675538,128.23,128.2,0.05643157]
[1741542538802,0.05675538,128.23,128.2,7.85673157]
[1741542539007,0.05675538,128.23,128.2,0.05643157]
[1741542542803,0.05675538,128.23,128.22,7.7997]
[1741542543004,0.05675538,128.23,128.2,0.05643157]
[1741542543509,0.05675538,128.23,128.2,7.85703157]
[1741542543707,0.05675538,128.23,128.2,0.05643157]
[1741542544115,5.538e-05,128.23,128.22,7.7997]
[1741542545714,7.5603,128.31,128.2,89.81042231]
[1741542546017,7.5603,128.31,128.29,7.7951]
[1741542546216,7.5603,128.31,128.24,51.19399074]
[1741542546418,38.56,128.3,128.22,51.19399074]
[1741542546616,38.56,128.3,128.2,51.19399074]
[1741542546808,51.19399074,128.29,128.18,53.70809074]
[1741542547007,0.05748468,128.26,128.24,0.05706713]
[1741542547219,38.56,128.25,128.2,7.8007]
[1741542547612,38.56,128.25,128.19,7.8012]
[1741542547921,38.56,128.25,128.16,51.19399074]
[1741542548121,38.56,128.25,128.19,51.19399074]
[1741542548319,0.05107281,128.22,128.19,51.25020741]
[1741542548619,296.0,128.28,128.19,89.81020741]
[1741542548825,257.42,128.34,128.24,51.19399074]
[1741542549018,46.3532,128.33,128.24,51.19399074]
[1741542549218,38.56,128.33,128.28,7.7957]
[1741542549413,38.56,128.33,128.26,51.19399074]
[1741542549818,0.05972137,128.31,128.28,0.05386677]
[1741542550022,38.56,128.3,128.28,0.05386677]
[1741542550217,0.05972137,128.31,128.28,0.05386677]
[1741542550823,0.05972137,128.31,128.29,7.7954]
[1741542551025,0.05972137,128.31,128.28,51.24785751]
[1741542551222,38.59972137,128.31,128.28,0.05386677]
[1741542551926,0.05972137,128.31,128.3,7.7948]
[1741542553225,0.05972137,128.31,128.28,0.05386677]
[1741542554627,38.54,128.3,128.22,89.73399074]
[1741542555027,7.7958,128.29,128.24,7.7981]
[1741542555232,7.7958,128.29,128.22,89.73399074]
[1741542555827,38.54,128.3,128.24,51.24426198]
[1741542555828,0.05783197,128.27,128.24,51.24426198]
[1741542556030,0.05783197,128.27,128.24,7.84837124]
[1741542556232,7.85483197,128.27,128.24,0.05027124]
[1741542556540,0.05783197,128.27,128.24,0.05027124]
[1741542557338,0.05783197,128.27,128.25,7.7978]
[1741542557530,0.05783197,128.27,128.24,0.05027124]
[1741542557933,0.05783197,128.27,128.24,7.84827124]
[1741542558234,0.05783197,128.27,128.24,0.05027124]
[1741542558839,38.54,128.26,128.24,0.05027124]
[1741542559032,46.3375,128.26,128.24,0.05027124]
[1741542559333,38.54,128.26,128.24,0.05027124]
[1741542559537,7.7978,128.25,128.24,0.05027124]
[1741542559737,38.54,128.26,128.18,56.11209074]
[1741542560127,7.8001,128.22,128.18,12.7199]
[1741542560431,7.8001,128.22,128.18,7.8018]
[1741542560733,38.54,128.25,128.18,51.19399074]
[1741542560936,0.05571009,128.21,128.19,0.05267662]
[1741542561335,0.05571009,128.21,128.2,7.8009]
[1741542561736,38.54,128.28,128.19,0.05267662]
[1741542561936,46.3364,128.28,128.24,7.798]
[1741542562238,38.54,128.28,128.21,51.19399074]
[1741542562433,257.36,128.32,128.21,51.19399074]
[1741542562634,38.54,128.31,128.22,38.54]
[1741542562834,38.54,128.31,128.24,51.19399074]
[1741542563040,0.05718026,128.28,128.27,7.7966]
[1741542563236,0.05718026,128.28,128.24,51.19399074]
[1741542563541,305.09886618,128.32,128.26,0.05530237]
[1741542563542,38.59606039,128.29,128.26,0.05530237]
[1741542563932,38.59897465,128.29,128.26,0.05530237]
[1741542564333,38.59897465,128.29,128.19,43.4424]
[1741542564334,38.59897465,128.29,128.19,2.4123]
[1741542564539,7.7978,128.26,128.19,2.4123]
[1741542564933,89.73399074,128.29,128.19,2.4123]
[1741542565136,89.73399074,128.29,128.16,38.54]
[1741542565339,51.19399074,128.27,128.16,38.54]
[1741542565540,0.0579043,128.24,128.21,0.05381948]
[1741542565847,38.54,128.23,128.21,0.05381948]
[1741542566037,0.0579043,128.24,128.21,0.05381948]
[1741542566244,0.0579043,128.24,128.22,7.7997]
[1741542566444,0.0579043,128.24,128.21,0.05381948]
[1741542566640,0.0579043,128.24,128.22,7.7997]
[1741542566845,0.0579043,128.24,128.21,0.05381948]
[1741542567546,38.5979043,128.24,128.21,0.05381948]
[1741542567745,38.5979043,128.24,128.23,7.7991]
[1741542567942,0.0579043,128.24,128.23,7.7991]
[1741542568442,4.3e-06,128.24,128.23,7.7991]
[1741542568643,4.3e-06,128.24,128.23,58.99309074]
[1741542570246,4.3e-06,128.24,128.21,0.05381948]
[1741542570439,7.7992,128.23,128.21,0.05381948]
[1741542570749,4.3e-06,128.24,128.16,51.19399074]
[1741542570947,5.0414,128.23,128.14,51.19399074]
[1741542571748,7.8007,128.21,128.14,51.19399074]
[1741542571947,0.05850619,128.2,128.17,7.86173098]
[1741542572151,0.05850619,128.2,128.17,0.05943098]
[1741542572349,0.05850619,128.2,128.17,7.86193098]
[1741542572554,0.05850619,128.2,128.17,0.05943098]
[1741542573040,0.05850619,128.2,128.19,7.8015]
[1741542573552,7.85970619,128.2,128.17,0.05943098]
[1741542574255,0.05850619,128.2,128.17,0.05943098]
[1741542574654,0.05850619,128.2,128.1,89.73399074]
[1741542574853,0.05850619,128.2,128.1,51.19399074]
[1741542575152,89.73399074,128.21,128.1,51.19399074]
[1741542575948,0.05855214,128.17,128.14,0.05105086]
[1741542576349,5.214e-05,128.17,128.16,7.8028]
[1741542576751,5.214e-05,128.17,128.16,10.3136]
[1741542576956,192.0,128.26,128.16,6.4108]
[1741542577155,54.22460073,128.27,128.21,7.7999]
[1741542577451,54.22460073,128.27,128.19,51.19399074]
[1741542578051,54.22460073,128.27,128.22,0.05731932]
[1741542578052,0.05202978,128.24,128.22,0.05731932]
[1741542578256,0.05202978,128.24,128.22,7.85651932]
[1741542578459,176.74504579,128.23,128.22,7.85651932]
[1741542578660,176.74504579,128.23,128.22,7.85701932]
[1741542578858,176.74504579,128.23,128.22,0.05731932]
[1741542579364,176.74504579,128.23,128.22,7.85701932]
[1741542580052,176.74504579,128.23,128.22,0.05731932]
[1741542580551,176.74504579,128.23,128.22,7.85701932]
[1741542581555,176.74504579,128.23,128.15,5.0632]
[1741542581556,38.54,128.23,128.15,2.6305]
[1741542581762,7.7999,128.22,128.15,2.6305]
[1741542582152,51.19399074,128.21,128.12,2.449]
[1741542582348,51.19399074,128.18,128.11,19.54433542]
[1741542582550,38.54,128.17,128.1,7.8067]
[1741542582855,7.85756915,128.16,128.13,0.05983363]
[1741542583158,0.05469387,128.16,128.13,0.05983363]
[1741542583659,51.24868461,128.16,128.07,4.8385]
[1741542583862,51.19399074,128.16,128.09,7.8075]
[1741542584054,7.8051,128.14,128.07,4.8385]
[1741542584253,38.54,128.13,128.04,53.63139074]
[1741542584558,43.3344,128.13,128.04,53.63139074]
[1741542584759,7.85717385,128.1,128.07,0.05161864]
[1741542584962,0.05007385,128.1,128.07,0.05161864]
[1741542585757,7.85757385,128.1,128.07,0.05161864]
[1741542586063,0.05007385,128.1,128.07,0.05161864]
[1741542589061,7.8082,128.08,128.07,0.05161864]
[1741542589466,38.56,128.09,128.0,58.62179074]
[1741542589760,7.8082,128.08,128.0,58.62179074]
[1741542590166,46.3678,128.09,128.0,58.62179074]
[1741542590461,38.56,128.09,128.0,58.62179074]
[1741542590662,0.04933187,128.06,128.03,0.05747126]
[1741542591270,0.04933187,128.06,128.05,7.81]
[1741542591862,3.187e-05,128.06,128.05,7.81]
[1741542598064,3.187e-05,128.06,128.03,0.05747126]
[1741542598269,38.56003187,128.06,128.03,0.05747126]
[1741542598469,7.81,128.05,128.03,0.05747126]
[1741542598769,38.56003187,128.06,128.03,0.05747126]
[1741542599266,38.56003187,128.06,128.03,7.86867126]
[1741542600168,38.56003187,128.06,128.03,0.05747126]
[1741542601066,3.187e-05,128.06,128.03,0.05747126]
[1741542601263,3.187e-05,128.06,128.05,39.42101642]
[1741542601660,41.0577,128.12,128.1,7.8066]
[1741542601969,41.0577,128.12,128.05,31.61101642]
[1741542602271,41.0577,128.12,128.1,7.8069]
[1741542602664,41.0577,128.12,128.05,31.61101642]
[1741542602866,48.91970594,128.12,128.08,7.8078]
[1741542603075,41.11330594,128.12,128.07,0.05794906]
[1741542603365,31.61101642,128.11,128.07,0.05794906]
[1741542603573,7.8091,128.07,128.03,7.8111]
[1741542603778,46.3691,128.07,128.03,7.8111]
[1741542604168,38.56,128.07,128.0,34.12361642]
[1741542604570,38.56,128.07,127.99,3.914]
[1741542604770,0.05645622,128.05,128.02,0.05037097]
[1741542605672,7.8106,128.04,128.02,0.05037097]
[1741542605873,38.56,128.03,128.02,0.05037097]
[1741542606069,0.05645622,128.05,128.02,31.66138739]
[1741542606371,289.31101642,128.13,128.04,31.61101642]
[1741542606372,38.56,128.11,128.04,31.61101642]
[1741542606767,257.7,128.13,128.06,31.61101642]
[1741542607068,257.7,128.13,128.08,31.61101642]
[1741542607369,0.05278578,128.12,128.09,0.05071417]
[1741542607570,0.05278578,128.12,128.1,31.61101642]
[1741542607571,8.578e-05,128.12,128.1,31.61101642]
[1741542607969,8.578e-05,128.12,128.11,7.8064]
[1741542610169,8.578e-05,128.12,128.1,7.86235218]
[1741542610371,8.578e-05,128.12,128.1,0.05555218]
[1741542612074,8.578e-05,128.12,128.11,7.8064]
[1741542612371,8.578e-05,128.12,128.11,15.7785]
[1741542612576,8.578e-05,128.12,128.11,7.8064]
[1741542613770,94.69910458,130.39,128.11,55.21036653]
[1741542613771,38.54,128.23,128.11,55.21036653]
[1741542614076,42.4019,128.23,128.14,51.31036653]
[1741542614473,55.29436653,128.21,128.1,55.14706653]
[1741542614679,55.29436653,128.21,128.1,3.8367]
[1741542614978,0.05945334,128.17,128.14,7.86348902]
[1741542615279,38.59945334,128.17,128.14,0.05908902]
[1741542615479,46.40215334,128.17,128.14,0.05908902]
[1741542615676,38.59945334,128.17,128.14,0.05908902]
[1741542616581,7.8037,128.16,128.14,0.05908902]
[1741542617182,38.59945334,128.17,128.14,0.05908902]
[1741542617674,347.52981987,128.17,128.07,7.9721]
[1741542617875,51.31036653,128.15,128.04,55.32166653]
[1741542618075,3.7053,128.14,128.04,55.32166653]
[1741542618280,38.52,128.13,128.04,55.32166653]
[1741542618478,7.8062,128.12,128.04,55.32166653]
[1741542618681,38.52,128.13,128.04,55.32166653]
[1741542618879,0.05061202,128.09,128.07,0.04986452]
[1741542619286,0.05061202,128.09,128.08,7.8082]
[1741542619581,0.05061202,128.09,128.07,0.04986452]
[1741542619776,0.05061202,128.09,128.08,7.8082]
[1741542620079,38.52,128.18,128.08,51.31036653]
[1741542620278,38.52,128.18,128.06,89.83036653]
[1741542620279,7.6376,128.16,128.06,89.83036653]
[1741542620881,7.6376,128.16,128.08,51.31036653]
[1741542621081,246.97716653,128.2,128.15,7.8039]
[1741542621381,3.9466,128.19,128.11,51.31036653]
[1741542621586,257.62,128.23,128.15,51.31036653]
[1741542621784,257.62,128.23,128.15,89.83036653]
[1741542622083,49.31010273,128.25,128.17,51.31036653]
[1741542622579,0.05353836,128.22,128.2,0.05073726]
[1741542623678,38.5,128.21,128.2,0.05073726]
[1741542623980,38.5,128.21,128.12,4.0193]
[1741542624181,62.53126653,128.2,128.12,4.0193]
[1741542624580,62.53126653,128.2,128.08,51.31036653]
[1741542624981,62.53126653,128.2,128.13,0.04956765]
[1741542624982,0.05626998,128.15,128.13,0.04956765]
[1741542625190,62.53126653,128.2,128.06,3.9908]
[1741542625191,38.5,128.14,128.06,3.9908]
[1741542625587,38.5,128.14,128.06,55.30116653]
[1741542625895,38.5,128.14,128.13,7.8051]
[1741542626091,38.5,128.17,128.07,38.5]
[1741542626289,38.5,128.17,128.08,51.31036653]
[1741542626594,7.84e-05,128.13,128.12,7.8058]
[1741542626790,38.5,128.17,128.11,0.05582257]
[1741542627193,38.5,128.17,128.15,7.8038]
[1741542627595,38.5,128.17,128.16,7.8033]
[1741542627797,0.05758964,128.17,128.16,7.8033]
[1741542631200,0.05758964,128.17,128.15,0.05889862]
[1741542631397,89.86795617,128.17,128.07,7.8868]
[1741542631591,51.31036653,128.15,128.1,7.807]
[1741542631898,51.31036653,128.13,128.02,89.81036653]
[1741542632098,46.0204,128.12,128.02,51.31036653]
[1741542632400,46.0204,128.12,128.0,11.6075]
[1741542632401,46.0204,128.12,128.06,7.809]
[1741542632602,0.05390925,128.08,128.06,0.05258733]
[1741542632800,46.3088,128.07,128.06,0.05258733]
[1741542633001,97.61916653,128.07,128.0,3.9471]
[1741542633301,38.5,128.07,128.0,3.9471]
[1741542633601,38.5,128.08,128.0,3.9471]
[1741542633803,38.5,128.08,128.0,55.25746653]
[1741542634000,38.5,128.08,128.0,93.75746653]
[1741542634200,7.946e-05,128.05,128.04,7.8106]
[1741542635501,7.946e-05,128.05,128.04,59.12096653]
[1741542635704,7.946e-05,128.05,128.04,70.58916653]
[1741542636003,7.946e-05,128.05,128.04,109.08916653]
[1741542636203,7.946e-05,128.05,128.04,7.8106]
[1741542636697,7.946e-05,128.05,128.04,59.12096653]
[1741542636895,257.56,128.14,128.04,55.21036653]
[1741542637100,257.56,128.14,128.13,7.8051]
[1741542637497,3.9353,128.16,128.13,7.8051]
[1741542637801,38.5,128.15,128.14,7.8045]
[1741542638204,3.9353,128.16,128.13,0.05598182]
[1741542638205,0.05763126,128.16,128.13,0.05598182]
[1741542638407,0.05763126,128.16,128.15,7.8039]
[1741542638606,0.05682385,128.16,128.13,0.05125604]
[1741542639403,0.05682385,128.16,128.14,7.8041]
[1741542639599,0.05682385,128.16,128.13,0.05125604]
[1741542639804,0.05682385,128.16,128.15,7.8039]
[1741542640502,0.05682385,128.16,128.13,0.05125604]
[1741542641711,0.05682385,128.16,128.15,7.8039]
[1741542641907,0.05682385,128.16,128.13,0.05125604]
[1741542642410,0.05682385,128.16,128.14,7.804]
[1741542642607,0.05682385,128.16,128.13,0.05125604]
[1741542643512,0.05682385,128.16,128.15,7.8039]
[1741542647520,2.385e-05,128.16,128.15,7.8039]
[1741542651118,2.385e-05,128.16,128.15,43.27533765]
[1741542651821,2.385e-05,128.16,128.15,39.37533765]
[1741542652021,2.385e-05,128.16,128.15,7.8039]
[1741542652928,2.385e-05,128.16,128.14,7.8042]
[1741542653122,2.385e-05,128.16,128.13,0.05125604]
[1741542653331,2.385e-05,128.16,128.15,7.8039]
[1741542654430,2.385e-05,128.16,128.13,0.05125604]
[1741542654929,2.385e-05,128.16,128.15,7.8039]
[1741542655629,2.385e-05,128.16,128.14,7.8042]
[1741542655829,2.385e-05,128.16,128.13,0.05125604]
[1741542657433,2.385e-05,128.16,128.14,7.8045]
[1741542657732,2.385e-05,128.16,128.13,0.05125604]
[1741542657924,4.06702385,128.16,128.13,0.05125604]
[1741542658628,11.87072385,128.16,128.13,0.05125604]
[1741542659231,7.8042,128.15,128.13,0.05125604]
[1741542659522,4.06702385,128.16,128.13,0.05125604]
[1741542659931,7.8045,128.14,128.13,0.05125604]
[1741542660134,38.44,128.14,128.13,0.05125604]
[1741542660424,46.2449,128.14,128.11,7.8059]
[1741542661131,46.2449,128.14,128.06,3.8953]
[1741542661132,38.44,128.14,128.12,7.8057]
[1741542661330,38.44,128.14,128.06,3.8953]
[1741542661533,38.49147223,128.14,128.12,0.05044487]
[1741542661732,38.44,128.14,128.07,31.57143765]
[1741542662035,0.05374902,128.14,128.07,31.57143765]
[1741542662228,0.05374902,128.14,128.13,7.8051]
[1741542662437,8.2838,128.17,128.1,31.57143765]
[1741542662726,0.05712253,128.15,128.12,0.05958415]
[1741542663726,46.2449,128.14,128.12,0.05958415]
[1741542663923,38.44,128.14,128.12,0.05958415]
[1741542664130,38.44,128.14,128.13,7.8051]
[1741542664332,0.05712253,128.15,128.12,0.05958415]
[1741542665929,31.62856018,128.15,128.05,8.1674]
[1741542666134,4.2713,128.14,128.05,8.1674]
[1741542666334,46.2455,128.13,128.1,7.8069]
[1741542666525,38.44,128.13,128.05,8.1674]
[1741542667136,0.05102397,128.1,128.08,0.0598792]
[1741542671235,0.05102397,128.1,128.09,7.8076]
[1741542671534,0.05102397,128.1,128.08,0.0598792]
[1741542671729,46.2476,128.09,128.08,0.0598792]
[1741542671932,38.44,128.09,127.98,70.01143765]
[1741542672136,31.57143765,128.07,127.97,7.9963]
[1741542672337,7.8117,128.03,127.99,7.8135]
[1741542672535,46.2517,128.03,127.99,7.8135]
[1741542672738,38.44,128.03,127.97,7.9963]
[1741542672939,38.44,128.03,128.01,7.8123]
[1741542673442,38.4952549,128.03,127.99,0.05584287]
[1741542674038,0.0552549,128.03,128.02,7.8119]
[1741542674532,0.0552549,128.03,127.99,0.05584287]
[1741542674734,0.0552549,128.03,128.02,7.8119]
[1741542675133,0.0552549,128.03,127.99,0.05584287]
[1741542676142,38.44,128.02,127.99,0.05584287]
[1741542676338,46.2523,128.02,127.99,0.05584287]
[1741542676536,296.08,128.02,127.92,31.57143765]
[1741542676739,8.2238,128.01,127.9,31.57143765]
[1741542676943,7.8135,128.0,127.95,7.816]
[1741542677143,8.2238,128.01,127.9,31.57143765]
[1741542677339,39.38473765,128.0,127.95,7.8155]
[1741542677536,31.57143765,128.0,127.95,7.8155]
[1741542677742,0.05328249,127.99,127.96,0.05940695]
[1741542678047,38.44,127.98,127.88,82.38783765]
[1741542679145,0.05154194,127.94,127.93,7.8173]
[1741542679416,0.05154194,127.94,127.92,0.04936055]
[1741542679547,70.01143765,127.98,127.92,0.04936055]
[1741542679749,0.05773287,127.95,127.92,0.04936055]
[1741542679944,0.05773287,127.95,127.92,31.6207982]
[1741542679945,3.287e-05,127.95,127.92,31.6207982]
[1741542680247,8.2238,128.01,127.92,31.57143765]
[1741542680754,8.2238,128.01,127.94,31.57143765]
[1741542681057,8.2238,128.01,127.96,0.05522522]
[1741542681058,0.05006443,127.99,127.96,0.05522522]
[1741542681254,0.05006443,127.99,127.97,7.8144]
[1741542681456,0.05006443,127.99,127.96,0.05522522]
[1741542681659,0.05006443,127.99,127.98,7.8143]
[1741542682153,0.05006443,127.99,127.96,0.05522522]
[1741542683354,0.05006443,127.99,127.98,7.8143]
[1741542684154,0.05006443,127.99,127.96,0.05522522]
[1741542684354,0.05006443,127.99,127.97,7.8144]
[1741542684555,0.05006443,127.99,127.96,0.05522522]
[1741542684756,0.05006443,127.99,127.97,7.8145]
[1741542684953,0.05006443,127.99,127.96,0.05522522]
[1741542685755,0.05006443,127.99,127.97,7.8145]
[1741542686255,0.05006443,127.99,127.96,0.05522522]
[1741542686556,0.05006443,127.99,127.98,7.8143]
[1741542686758,0.05006443,127.99,127.96,0.05522522]
[1741542686958,38.49006443,127.99,127.96,0.05522522]
[1741542687553,70.06150208,127.99,127.89,35.74503765]
[1741542687752,7.8159,127.96,127.87,70.01143765]
[1741542688356,7.8159,127.96,127.9,7.8186]
[1741542688658,7.8159,127.96,127.87,70.01143765]
[1741542688860,8.2799,127.98,127.93,7.8174]
[1741542688861,0.05690315,127.94,127.93,7.8174]
[1741542689062,8.2799,127.98,127.92,0.05946902]
[1741542689255,0.05382881,127.95,127.92,0.05946902]